bitfinex/quotes_SOLUSD_20240916
["timestamp","ask_amount","ask_price","bid_price","bid_amount"]
[1726509201448,23.776884,131.16,131.11,26.6944]
[1726509202264,23.776884,131.14,131.11,26.6944]
[1726509202451,0.2576456,131.17,131.11,19.0675]
[1726509203268,7.8817456,131.17,131.13,7.6259]
[1726509203865,23.776884,131.16,131.13,7.6259]
[1726509204470,23.776884,131.16,131.12,7.6264]
[1726509204972,23.776884,131.14,131.11,26.6945]
[1726509206746,7.6244,131.16,131.12,7.6264]
[1726509206965,23.776884,131.15,131.12,7.6264]
[1726509208484,23.776884,131.16,131.13,7.6257]
[1726509210954,31.401084,131.16,131.12,7.6263]
[1726509211681,7.6248,131.15,131.11,26.6944]
[1726509212058,7.6244,131.16,131.12,7.6265]
[1726509212574,24.0345296,131.17,131.13,19.0643]
[1726509213158,24.0345296,131.17,131.13,26.6899]
[1726509213159,31.6586296,131.17,131.13,26.6899]
[1726509215766,24.0345296,131.17,131.14,7.6253]
[1726509218283,24.0345296,131.17,131.13,19.0643]
[1726509218284,0.2576456,131.17,131.13,19.0643]
[1726509218592,0.2576456,131.17,131.11,7.6269]
[1726509218881,7.6252,131.15,131.11,7.6268]
[1726509219063,0.2576456,131.17,131.1,26.6956]
[1726509219265,0.2576456,131.17,131.14,7.625]
[1726509219681,0.2576456,131.17,131.13,7.6258]
[1726509220392,23.776884,131.16,131.13,7.6258]
[1726509220592,23.776884,131.16,131.14,7.6254]
[1726509220795,0.2576456,131.17,131.14,7.6254]
[1726509221366,0.2576456,131.17,131.15,7.6247]
[1726509221567,0.2576456,131.17,131.15,26.6863]
[1726509221773,0.2576456,131.17,131.15,19.0616]
[1726509222286,0.2576456,131.17,131.15,20.58640436]
[1726509222490,0.2576456,131.17,131.16,7.6242]
[1726509223588,0.2576456,131.17,131.15,26.6863]
[1726509224477,0.2576456,131.17,131.16,7.6242]
[1726509225081,0.2576456,131.17,131.15,26.6863]
[1726509227408,0.2576456,131.17,131.16,7.6242]
[1726509228091,0.2576456,131.17,131.15,26.6864]
[1726509228668,0.2576456,131.17,131.16,7.6242]
[1726509230081,0.2576456,131.17,131.16,45.7455]
[1726509232200,0.2576456,131.17,131.16,7.6242]
[1726509243186,0.2576456,131.17,131.15,19.0616]
[1726509244107,0.2576456,131.17,131.16,7.6242]
[1726509244293,0.2576456,131.17,131.16,23.29104687]
[1726509246207,0.2576456,131.21,131.2,32.8986]
[1726509246511,0.2576456,131.21,131.2,48.56544687]
[1726509246886,0.2576456,131.21,131.2,63.99034687]
[1726509247090,0.2576456,131.21,131.2,64.62730826]
[1726509247313,0.2576456,131.25,131.2,64.62730826]
[1726509247314,0.2576456,131.25,131.24,42.33544687]
[1726509247905,0.2576456,131.25,131.24,26.6686]
[1726509248308,268.77994669,131.33,131.24,26.6686]
[1726509248309,3.78172751,131.41,131.31,16.6581]
[1726509248489,259.1,131.49,131.31,16.6581]
[1726509248490,50.0,131.56,131.44,7.6079]
[1726509248793,50.0,131.56,131.33,10.0]
[1726509248794,0.2575594,131.47,131.45,0.92167015]
[1726509248993,0.2575594,131.47,131.46,7.6068]
[1726509249285,0.2575594,131.47,131.46,8.52840003]
[1726509249493,0.2575594,131.47,131.46,7.6068]
[1726509250429,0.2575594,131.47,131.44,7.6076]
[1726509250892,0.2575594,131.47,131.45,30.0]
[1726509252390,0.2575594,131.47,131.4,22.7615]
[1726509252587,0.2575594,131.47,131.42,30.0]
[1726509252810,0.2575594,131.47,131.42,56.6304]
[1726509253312,0.2575594,131.47,131.42,30.0]
[1726509253496,7.607,131.46,131.42,29.5]
[1726509254809,0.2575594,131.47,131.42,29.5]
[1726509254810,7.6076,131.45,131.42,29.5]
[1726509255115,7.6081,131.44,131.42,29.5]
[1726509255696,7.6081,131.44,131.39,1.1351109]
[1726509256012,7.6087,131.43,131.4,1.1350827]
[1726509256211,7.6087,131.43,131.39,1.34047639]
[1726509256512,7.6087,131.43,131.4,1.34063347]
[1726509257005,7.6087,131.43,131.39,1.52184095]
[1726509257216,7.6087,131.43,131.4,1.52184318]
[1726509257712,7.6087,131.43,131.39,1.52184318]
[1726509257904,7.6087,131.43,131.4,1.52189427]
[1726509258086,7.6098,131.41,131.39,1.52189536]
[1726509258291,7.6092,131.42,131.37,1.52192805]
[1726509258907,7.6092,131.42,131.37,9.13392805]
[1726509259102,0.2575594,131.43,131.38,31.52200822]
[1726509259688,7.8662594,131.43,131.39,1.52162805]
[1726509259891,7.8662594,131.43,131.4,1.52183613]
[1726509260096,0.2575594,131.43,131.4,1.52183613]
[1726509260309,0.2575594,131.43,131.4,31.52183613]
[1726509260515,7.6097,131.42,131.38,1.52162647]
[1726509261311,7.6097,131.42,131.37,19.0295]
[1726509261709,7.6097,131.41,131.38,0.87520834]
[1726509261892,7.6097,131.41,131.37,19.0295]
[1726509263613,0.2575594,131.43,131.39,19.0261]
[1726509263811,7.8661594,131.43,131.4,1.52050406]
[1726509264119,0.4065992,131.43,131.4,1.52050406]
[1726509264295,0.4065992,131.43,131.39,7.6107]
[1726509264618,0.4065992,131.43,131.4,9.13000976]
[1726509265705,0.4065992,131.43,131.4,1.51980976]
[1726509268009,0.4065992,131.43,131.39,7.6109]
[1726509268318,0.4065992,131.43,131.37,8.15830975]
[1726509269001,0.4065992,131.43,131.38,38.97283247]
[1726509269205,0.4065992,131.43,131.39,30.0]
[1726509270216,0.4065992,131.43,131.42,7.6091]
[1726509270424,0.4065992,131.43,131.4,19.0248]
[1726509270642,0.4065992,131.43,131.41,7.6092]
[1726509270803,0.4065992,131.43,131.42,7.6091]
[1726509271328,0.4065992,131.43,131.41,7.6096]
[1726509272015,0.4065992,131.43,131.4,26.635]
[1726509272209,0.4065992,131.43,131.4,19.0248]
[1726509273227,8.0151992,131.43,131.4,19.0248]
[1726509273450,0.4065992,131.43,131.41,0.97213702]
[1726509273720,0.4065992,131.43,131.42,9.1304082]
[1726509277226,0.4065992,131.43,131.42,7.6091]
[1726509277620,0.2575594,131.47,131.42,46.12299456]
[1726509277822,0.2575594,131.47,131.46,26.6239]
[1726509277823,0.0905733,131.47,131.46,26.6239]
[1726509278158,0.0905733,131.47,131.46,52.51863293]
[1726509278422,0.0905733,131.47,131.46,52.51852309]
[1726509278628,0.0905733,131.47,131.46,82.51852309]
[1726509279504,0.3274261,131.51,131.5,70.9445]
[1726509279699,0.3274261,131.51,131.5,102.46426611]
[1726509280537,7.9256261,131.61,131.5,102.46426611]
[1726509280538,7.9256261,131.61,131.55,26.6057]
[1726509281533,0.3274261,131.61,131.55,26.6057]
[1726509282924,7.5993,131.6,131.55,26.6057]
[1726509283122,1.51980975,131.59,131.52,19.008]
[1726509283321,7.6006,131.57,131.52,26.6113]
[1726509284923,19.3238261,131.61,131.44,86.30648123]
[1726509284924,18.9993,131.59,131.49,19.012]
[1726509285236,7.6017,131.55,131.49,19.012]
[1726509285625,7.6017,131.55,131.5,7.6043]
[1726509286334,7.6026,131.54,131.49,26.6169]
[1726509287215,7.9290261,131.56,131.52,7.6033]
[1726509287421,7.9290261,131.56,131.49,19.012]
[1726509287422,0.3274261,131.56,131.49,19.012]
[1726509287942,0.3274261,131.56,131.53,19.0064]
[1726509288127,7.9285261,131.56,131.52,7.6032]
[1726509288322,0.3274261,131.56,131.52,26.6107]
[1726509289318,0.3274261,131.56,131.55,7.6016]
[1726509289939,0.3274261,131.56,131.54,26.6069]
[1726509290843,0.3274261,131.56,131.51,38.0193]
[1726509290844,0.3274261,131.56,131.53,7.6025]
[1726509291140,0.3274261,131.56,131.54,1.5201307]
[1726509291640,0.3274261,131.56,131.55,1.51975327]
[1726509291843,0.3274261,131.56,131.54,7.602]
[1726509294344,0.3274261,131.56,131.55,7.6016]
[1726509296852,0.3274261,131.56,131.55,37.6016]
[1726509297840,2.61e-05,131.56,131.55,37.6016]
[1726509299752,2.61e-05,131.56,131.55,59.12084493]
[1726509300335,2.61e-05,131.56,131.55,39.12084493]
[1726509300669,2.61e-05,131.56,131.55,7.6016]
[1726509303527,2.61e-05,131.56,131.55,9.12061631]
[1726509304127,2.61e-05,131.56,131.55,9.12061637]
[1726509304349,2.61e-05,131.56,131.55,29.12061637]
[1726509305431,2.61e-05,131.56,131.55,59.12061637]
[1726509305631,2.61e-05,131.56,131.55,57.6016]
[1726509308240,2.61e-05,131.56,131.55,37.6016]
[1726509308552,2.61e-05,131.56,131.55,7.6016]
[1726509310455,2.61e-05,131.56,131.55,9.12075195]
[1726509310623,2.61e-05,131.56,131.55,7.6016]
[1726509310825,2.61e-05,131.56,131.55,9.1207493]
[1726509311045,2.61e-05,131.56,131.55,45.6099]
[1726509311346,2.61e-05,131.56,131.55,47.12882176]
[1726509311534,2.61e-05,131.56,131.55,45.6099]
[1726509312942,2.61e-05,131.56,131.55,75.6099]
[1726509313748,2.61e-05,131.56,131.55,45.6099]
[1726509313949,2.61e-05,131.56,131.55,7.6016]
[1726509314453,2.61e-05,131.56,131.53,19.0064]
[1726509314629,2.61e-05,131.56,131.53,26.6088]
[1726509314833,2.61e-05,131.56,131.53,19.0064]
[1726509315032,2.61e-05,131.56,131.53,26.609]
[1726509315768,2.61e-05,131.56,131.5,19.0112]
[1726509315932,7.6013261,131.56,131.51,7.6035]
[1726509316457,7.6013261,131.56,131.52,7.6033]
[1726509316756,7.6013261,131.56,131.51,7.6038]
[1726509316935,7.6013261,131.56,131.52,7.6033]
[1726509317643,7.6013261,131.56,131.48,7.6051]
[1726509317644,7.6029,131.53,131.48,7.6051]
[1726509317834,1.51980975,131.55,131.47,19.0153]
[1726509318238,2.61e-05,131.56,131.47,19.0153]
[1726509318660,7.6017,131.55,131.49,7.6045]
[1726509318951,7.6017,131.55,131.5,7.6044]
[1726509319146,7.6017,131.55,131.47,19.0153]
[1726509319147,7.6034,131.52,131.47,26.6213]
[1726509319348,31.379184,131.54,131.49,7.6051]
[1726509319531,31.379184,131.54,131.48,7.6053]
[1726509319532,23.776884,131.54,131.48,7.6053]
[1726509319735,31.379184,131.54,131.49,7.6051]
[1726509319941,15.427,131.55,131.46,47.56843442]
[1726509320146,15.427,131.55,131.52,7.6033]
[1726509320446,15.427,131.55,131.54,7.6022]
[1726509320655,15.427,131.55,131.51,7.6039]
[1726509320857,15.427,131.55,131.5,7.6044]
[1726509321045,7.6022,131.54,131.49,19.0124]
[1726509321250,15.427,131.55,131.51,7.6038]
[1726509321450,15.427,131.55,131.49,19.0124]
[1726509321451,23.0287,131.55,131.5,7.6044]
[1726509321956,23.0287,131.55,131.52,7.6033]
[1726509321957,15.427,131.55,131.52,7.6033]
[1726509322163,15.427,131.55,131.53,7.6028]
[1726509323560,15.427,131.55,131.53,1.51936087]
[1726509323733,2.61e-05,131.56,131.53,1.51936087]
[1726509323934,2.61e-05,131.56,131.55,7.6016]
[1726509324545,2.61e-05,131.56,131.52,19.0084]
[1726509324546,2.61e-05,131.56,131.54,7.6021]
[1726509324743,2.61e-05,131.56,131.52,19.0084]
[1726509324957,2.61e-05,131.56,131.53,7.6027]
[1726509325255,2.61e-05,131.56,131.53,1.52024442]
[1726509325463,2.61e-05,131.56,131.54,7.6021]
[1726509326876,2.61e-05,131.56,131.55,7.6016]
[1726509331976,2.61e-05,131.56,131.55,13.6383]
[1726509333148,2.61e-05,131.56,131.55,14.81019068]
[1726509333477,2.61e-05,131.56,131.55,43.6383]
[1726509333850,0.3274261,131.61,131.6,26.5956]
[1726509334361,0.3274261,131.61,131.6,67.04801682]
[1726509334976,0.3274261,131.61,131.6,26.5956]
[1726509335347,0.3274261,131.61,131.6,56.5956]
[1726509335549,0.3274261,131.61,131.6,95.52883659]
[1726509335771,0.3274261,131.61,131.6,115.52883659]
[1726509336473,0.3274261,131.66,131.65,26.5855]
[1726509336857,0.3274261,131.66,131.65,56.5855]
[1726509337770,16.2201,131.74,131.68,18.9841]
[1726509337771,0.3290659,131.72,131.68,18.9841]
[1726509337968,0.7380243,131.72,131.68,18.9841]
[1726509338196,0.7380243,131.72,131.65,30.0]
[1726509338197,0.7380243,131.72,131.66,7.5951]
[1726509338668,7.5926,131.71,131.65,18.9896]
[1726509338877,7.5926,131.71,131.65,26.5852]
[1726509339373,0.7380243,131.72,131.65,18.9896]
[1726509339553,23.776884,131.71,131.65,18.9896]
[1726509339877,7.5938,131.69,131.64,7.5964]
[1726509340358,16.074,131.67,131.63,7.597]
[1726509341667,16.074,131.67,131.62,26.5914]
[1726509341857,23.6687,131.67,131.62,26.5914]
[1726509343191,23.776884,131.66,131.59,18.9979]
[1726509343376,7.597,131.63,131.59,18.9979]
[1726509343584,1.51980975,131.65,131.56,19.0025]
[1726509343767,31.373884,131.64,131.56,19.0025]
[1726509344260,7.5971,131.63,131.56,19.0025]
[1726509344458,23.776884,131.64,131.56,19.0025]
[1726509344757,7.5978,131.62,131.57,7.6003]
[1726509346075,7.5975,131.63,131.58,7.5998]
[1726509346377,7.5977,131.62,131.57,7.6004]
[1726509347287,7.5971,131.63,131.58,7.5999]
[1726509347777,23.776884,131.64,131.58,18.9988]
[1726509347966,7.5959,131.65,131.6,7.5987]
[1726509348969,7.5966,131.64,131.59,7.5992]
[1726509349170,7.597,131.63,131.59,7.5992]
[1726509349489,9.11750975,131.62,131.58,18.9988]
[1726509349989,7.5977,131.62,131.58,18.9988]
[1726509350370,9.11810975,131.61,131.56,7.601]
[1726509350570,7.5983,131.61,131.56,7.601]
[1726509351360,7.5983,131.61,131.57,7.6004]
[1726509351769,7.5983,131.61,131.56,7.601]
[1726509352866,7.5983,131.61,131.57,7.6003]
[1726509353788,0.0798925,131.62,131.58,0.74520412]
[1726509354090,0.0798925,131.62,131.57,7.6]
[1726509354300,7.6775925,131.62,131.57,7.6]
[1726509355000,0.0798925,131.62,131.58,8.34500411]
[1726509355296,0.0798925,131.62,131.58,7.5998]
[1726509355467,0.0798925,131.62,131.59,7.5989]
[1726509355664,0.0798925,131.62,131.59,7.5992]
[1726509355864,0.0798925,131.62,131.6,9.11820275]
[1726509356174,0.0798925,131.62,131.59,26.5965]
[1726509356379,0.0798925,131.62,131.59,18.9973]
[1726509356584,0.0798925,131.62,131.58,7.5998]
[1726509356786,0.0798925,131.62,131.56,19.0019]
[1726509356787,7.6776925,131.62,131.56,19.0019]
[1726509357096,7.6776925,131.62,131.58,7.5998]
[1726509358198,0.0798925,131.62,131.58,7.5998]
[1726509359384,7.6775925,131.62,131.58,7.5998]
[1726509360587,7.6775925,131.62,131.56,19.0019]
[1726509360588,7.5982,131.61,131.56,19.0019]
[1726509360787,7.5982,131.61,131.56,26.6025]
[1726509360988,7.5982,131.61,131.57,7.6003]
[1726509361305,7.6775925,131.62,131.57,7.6003]
[1726509361487,7.5982,131.61,131.57,7.6003]
[1726509361686,7.5993,131.6,131.55,7.6014]
[1726509361882,7.5995,131.59,131.53,19.0069]
[1726509362209,7.5989,131.6,131.55,7.6012]
[1726509362390,21.6391,131.61,131.52,38.0141]
[1726509362699,15.2603,131.61,131.59,7.5991]
[1726509362911,22.8586,131.61,131.57,19.0005]
[1726509363216,7.5997,131.59,131.54,26.6063]
[1726509363502,7.5999,131.58,131.54,26.6063]
[1726509365390,7.5995,131.59,131.54,26.6063]
[1726509366700,7.6,131.58,131.54,26.6063]
[1726509366900,6.5074,131.59,131.51,26.6126]
[1726509367099,7.6012,131.56,131.51,26.6126]
[1726509367401,7.6016,131.55,131.51,7.6038]
[1726509367608,7.6012,131.56,131.51,7.6038]
[1726509368405,31.377584,131.57,131.52,7.603]
[1726509368701,31.377584,131.57,131.5,19.0107]
[1726509368702,23.776884,131.58,131.55,7.6016]
[1726509368911,23.776884,131.58,131.54,26.6073]
[1726509369209,31.377184,131.58,131.54,19.0052]
[1726509369813,7.6009,131.57,131.52,7.6032]
[1726509370404,7.6013,131.56,131.52,7.6032]
[1726509375006,7.601,131.57,131.52,7.6032]
[1726509375196,7.601,131.57,131.52,7.57302]
[1726509375524,23.776884,131.56,131.52,7.57302]
[1726509376020,31.377984,131.56,131.52,7.57302]
[1726509376910,7.6026,131.54,131.5,7.6044]
[1726509377111,1.51980975,131.53,131.49,0.2491734]
[1726509377288,15.0862,131.54,131.49,0.2491734]
[1726509377489,23.776884,131.56,131.5,19.011]
[1726509378412,7.6016,131.55,131.51,7.6035]
[1726509379216,31.377984,131.56,131.52,7.6033]
[1726509379601,15.0862,131.61,131.53,1.52052329]
[1726509379804,16.41245552,131.61,131.57,7.6004]
[1726509379999,15.0862,131.61,131.57,7.6004]
[1726509380595,15.0862,131.61,131.56,19.0021]
[1726509380596,15.0862,131.61,131.58,7.5996]
[1726509381214,15.0862,131.61,131.59,7.5992]
[1726509381421,0.0798925,131.62,131.59,7.5992]
[1726509381912,0.0798925,131.62,131.58,26.5988]
[1726509382112,0.0798925,131.62,131.56,7.6006]
[1726509382113,9.11840975,131.61,131.56,7.6006]
[1726509382318,1.51980975,131.6,131.56,7.6006]
[1726509382698,9.11860975,131.6,131.55,26.6044]
[1726509383408,7.5988,131.6,131.55,26.6044]
[1726509383611,9.11920975,131.59,131.55,26.6044]
[1726509384491,7.6,131.58,131.55,19.0032]
[1726509384716,7.6,131.58,131.53,7.6022]
[1726509385024,7.5995,131.59,131.54,7.6019]
[1726509385312,23.776884,131.61,131.52,24.34654441]
[1726509385516,0.0798925,131.62,131.57,19.0009]
[1726509385726,0.0798925,131.62,131.53,38.0115]
[1726509385898,23.776884,131.61,131.53,38.0115]
[1726509386101,1.51980975,131.6,131.53,38.0115]
[1726509386317,23.776884,131.61,131.53,38.0115]
[1726509386525,7.5992,131.6,131.55,7.6015]
[1726509386727,7.5997,131.59,131.54,26.6068]
[1726509387025,7.5997,131.59,131.55,7.6016]
[1726509387399,7.5985,131.61,131.56,7.6008]
[1726509387599,1.51980975,131.6,131.56,7.6008]
[1726509387902,1.51980975,131.6,131.54,19.0046]
[1726509388527,23.776884,131.59,131.54,19.0046]
[1726509389317,23.776884,131.59,131.54,26.6064]
[1726509390022,31.376384,131.59,131.54,26.6064]
[1726509391411,23.776884,131.59,131.55,7.6014]
[1726509391609,23.776884,131.6,131.56,7.6006]
[1726509392130,0.0798925,131.62,131.58,7.5995]
[1726509392331,0.0798925,131.62,131.56,18.97169]
[1726509392734,0.0798925,131.62,131.56,26.57229]
[1726509392735,7.5992,131.6,131.56,26.57229]
[1726509393024,7.6004,131.58,131.53,26.6087]
[1726509393249,7.5997,131.59,131.54,7.6018]
[1726509393414,7.5997,131.59,131.55,7.6015]
[1726509394234,23.776884,131.6,131.56,7.6007]
[1726509394530,0.0798925,131.62,131.55,19.0037]
[1726509394531,7.5985,131.61,131.57,7.6004]
[1726509395536,7.6776925,131.62,131.58,7.5999]
[1726509395908,7.6776925,131.62,131.52,62.36154441]
[1726509395909,0.0798925,131.62,131.59,18.9976]
[1726509396240,0.0798925,131.62,131.6,7.5983]
[1726509396813,0.0798925,131.62,131.59,18.9976]
[1726509398816,0.0798925,131.62,131.59,26.5967]
[1726509399228,0.0802886,131.62,131.59,26.5967]
[1726509399427,0.0802886,131.62,131.59,18.9976]
[1726509400219,0.0802886,131.62,131.59,26.5967]
[1726509401617,0.0802886,131.62,131.6,7.5986]
[1726509402217,0.0802886,131.62,131.61,7.5982]
[1726509405011,0.0802886,131.62,131.6,7.5987]
[1726509405626,0.0802886,131.62,131.61,7.5982]
[1726509405919,7.5985,131.61,131.57,7.6003]
[1726509406240,7.5985,131.61,131.53,6.3341]
[1726509406241,0.0802886,131.62,131.59,7.5991]
[1726509406536,0.0802886,131.62,131.6,7.5986]
[1726509406722,0.0802886,131.62,131.59,7.5992]
[1726509407123,0.0802886,131.62,131.6,7.5985]
[1726509408342,0.0802886,131.62,131.59,7.5991]
[1726509409747,0.0802886,131.62,131.6,7.5987]
[1726509410434,0.0802886,131.62,131.61,7.5982]
[1726509413142,0.0802886,131.62,131.61,9.11746049]
[1726509416637,0.0802886,131.62,131.61,33.4640049]
[1726509416945,0.0802886,131.62,131.61,63.4640049]
[1726509417454,8.94e-05,131.64,131.63,88.92134441]
[1726509417627,8.94e-05,131.64,131.63,111.87134441]
[1726509417948,8.94e-05,131.64,131.63,118.92134441]
[1726509419531,0.2543894,131.68,131.67,26.5815]
[1726509423823,0.2543894,131.68,131.67,50.92804441]
[1726509424161,0.2543894,131.68,131.67,68.56037925]
[1726509424453,0.2543894,131.72,131.71,64.5355]
[1726509424659,0.2543894,131.72,131.71,24.92043631]
[1726509425550,0.2543894,131.72,131.71,54.92043631]
[1726509426046,0.2543894,131.72,131.71,24.92043631]
[1726509430142,0.2543894,131.76,131.75,26.5654]
[1726509431456,16.4925,131.86,131.75,26.5654]
[1726509431457,0.3092127,131.93,131.88,43.776884]
[1726509431764,0.3092127,131.93,131.92,26.5311]
[1726509431765,1.0269971,131.93,131.92,26.5311]
[1726509432739,1.0269971,131.93,131.92,56.5311]
[1726509434768,1.0269971,131.93,131.92,48.9508]
[1726509435066,1.0269971,131.93,131.92,30.0]
[1726509435265,1.0269971,131.93,131.92,37.5803]
[1726509435449,1.0269971,131.93,131.92,39.09401033]
[1726509435648,1.0269971,131.93,131.92,37.5803]
[1726509436043,21.51980975,132.05,131.92,37.5803]
[1726509436044,15.8466,132.08,131.96,18.9439]
[1726509436368,0.139182,131.99,131.96,48.9439]
[1726509436670,0.139182,131.99,131.97,14.1941]
[1726509437147,0.139182,131.99,131.97,44.1941]
[1726509437570,0.139182,131.99,131.97,37.5774]
[1726509437759,0.139182,131.99,131.96,26.5218]
[1726509437949,0.139182,131.99,131.92,6.454]
[1726509437950,0.139182,131.99,131.92,25.404]
[1726509438151,0.139182,131.99,131.94,7.5787]
[1726509438544,0.139182,131.99,131.95,18.946]
[1726509438749,0.139182,131.99,131.97,7.5774]
[1726509440748,0.139182,131.99,131.97,37.5774]
[1726509440958,0.139182,131.99,131.97,30.0]
[1726509441544,0.139182,131.99,131.97,7.5774]
[1726509441743,0.139182,131.99,131.95,18.946]
[1726509441958,0.139182,131.99,131.98,7.5769]
[1726509442950,0.139182,131.99,131.98,37.5769]
[1726509444368,0.139182,131.99,131.98,95.21591308]
[1726509444567,0.4924479,132.06,132.05,7.5728]
[1726509444871,0.4924479,132.06,132.05,30.0]
[1726509445656,0.4924479,132.06,132.05,37.5728]
[1726509446374,0.4924479,132.06,132.05,30.0]
[1726509446856,0.4924479,132.06,132.01,7.5751]
[1726509447184,23.776884,132.05,131.98,7.5768]
[1726509447481,7.5734,132.04,131.99,37.5762]
[1726509447852,7.5741,132.03,131.99,30.0]
[1726509448078,7.5741,132.03,131.98,7.5768]
[1726509448280,7.5735,132.04,131.98,7.5768]
[1726509448450,7.574,132.03,131.98,7.5768]
[1726509448855,9.09440975,132.02,131.96,26.5213]
[1726509449162,1.51980975,132.01,131.96,26.5213]
[1726509449572,9.09510975,132.01,131.96,26.5213]
[1726509449879,7.5753,132.01,131.96,26.5213]
[1726509450674,7.5757,132.0,131.96,18.9439]
[1726509451058,7.5751,132.02,131.97,30.0]
[1726509451566,7.5752,132.01,131.97,30.0]
[1726509451764,9.09570975,132.0,131.94,7.5787]
[1726509451956,7.5774,131.98,131.93,18.9491]
[1726509452161,23.776884,131.96,131.89,18.9538]
[1726509452369,9.09840975,131.95,131.9,30.0]
[1726509452581,7.5786,131.95,131.9,30.0]
[1726509452782,7.5786,131.95,131.9,37.5814]
[1726509452958,7.5793,131.94,131.9,30.0]
[1726509453161,7.5793,131.94,131.89,18.9538]
[1726509453162,1.51980975,131.93,131.89,18.9538]
[1726509453462,9.10010975,131.92,131.87,7.5831]
[1726509453766,7.5803,131.92,131.87,7.5831]
[1726509453968,1.51980975,131.91,131.86,26.5427]
[1726509454355,9.10080975,131.91,131.86,26.5427]
[1726509454982,9.10140975,131.9,131.86,18.9594]
[1726509455281,23.776884,131.93,131.85,37.9209]
[1726509455491,7.5786,131.96,131.9,26.5337]
[1726509455982,7.5792,131.94,131.89,7.5819]
[1726509456194,7.5787,131.95,131.89,7.5819]
[1726509456375,7.5798,131.93,131.88,7.5826]
[1726509456678,7.5798,131.93,131.87,26.5406]
[1726509456884,43.776884,131.96,131.87,26.5406]
[1726509456885,7.5803,131.92,131.87,26.5406]
[1726509457072,7.5809,131.91,131.84,18.9617]
[1726509457386,9.10140975,131.9,131.85,7.5842]
[1726509457686,43.776884,131.96,131.86,18.9584]
[1726509457889,23.776884,131.92,131.86,18.9584]
[1726509458185,7.5809,131.91,131.86,26.5417]
[1726509458390,7.5815,131.9,131.86,18.9584]
[1726509458961,23.776884,131.92,131.86,18.9584]
[1726509459785,23.776884,131.92,131.87,0.69132697]
[1726509460082,23.776884,131.92,131.86,18.9584]
[1726509460083,23.776884,131.92,131.89,7.5819]
[1726509460289,7.5786,131.95,131.9,7.5812]
[1726509460663,23.2515,131.97,131.92,7.5802]
[1726509460977,23.2515,131.97,131.93,7.5797]
[1726509461172,1.32227384,132.01,131.95,7.5786]
[1726509461684,8.89747384,132.01,131.96,7.578]
[1726509461874,7.5758,132.0,131.95,26.524]
[1726509462590,1.32227384,132.01,131.95,26.524]
[1726509462591,8.89747384,132.01,131.96,7.5778]
[1726509462766,8.89747384,132.01,131.97,7.5773]
[1726509462965,8.89747384,132.01,131.95,18.9455]
[1726509462966,8.89747384,132.01,131.96,7.578]
[1726509463182,7.5758,132.0,131.96,7.578]
[1726509463596,1.32227384,132.01,131.97,7.5773]
[1726509464071,7.5752,132.01,131.96,7.5779]
[1726509464272,7.5759,132.0,131.95,26.5239]
[1726509464481,1.51980975,131.99,131.95,26.5239]
[1726509464673,7.5759,132.0,131.95,26.5239]
[1726509465093,7.5751,132.02,131.95,18.9455]
[1726509465394,7.574,132.03,131.97,18.9429]
[1726509465893,7.574,132.03,131.98,7.5764]
[1726509466473,38.9328,132.05,131.94,18.9475]
[1726509466790,7.5758,132.0,131.95,7.5785]
[1726509466997,7.5758,132.0,131.96,7.5779]
[1726509467772,23.776884,132.01,131.96,18.9441]
[1726509467985,23.776884,132.01,131.97,7.5773]
[1726509468184,7.574,132.03,131.98,7.5768]
[1726509468483,7.5735,132.04,131.98,18.9413]
[1726509468876,7.5741,132.03,131.98,26.518]
[1726509469075,7.5747,132.02,131.98,18.9413]
[1726509469393,9.09510975,132.01,131.97,7.5773]
[1726509469599,15.8939479,132.06,131.96,7.5779]
[1726509469600,18.933,132.05,131.96,7.5779]
[1726509469786,7.5761,132.0,131.95,26.5244]
[1726509469986,1.51980975,131.99,131.95,26.5244]
[1726509470397,9.09620975,131.99,131.95,18.9458]
[1726509470598,7.5764,131.99,131.95,18.9458]